bitfinex/quotes_SOLUSD_20250522
["timestamp","ask_amount","ask_price","bid_price","bid_amount"]
[1747878980333,253.58601253,173.17,173.08,19.10750038]
[1747878980334,11.06385096,173.17,173.1,13.3299006]
[1747878980537,11.06385096,173.17,173.16,13.3299006]
[1747878980538,56.00385096,173.17,173.16,13.3299006]
[1747878980714,44.94,173.17,173.16,13.3299006]
[1747878981721,44.94,173.17,173.16,23.71364683]
[1747878981922,44.94,173.17,173.16,19.10490637]
[1747878982937,216.3,173.19,173.16,45.10490637]
[1747878983128,44.92,173.22,173.18,39.3299006]
[1747878983331,44.92,173.25,173.21,13.3299006]
[1747878983637,44.92,173.25,173.24,19.53749901]
[1747878985850,261.18,173.3,173.24,19.53749901]
[1747878986043,295.84,173.3,173.24,26.0]
[1747878986235,295.84,173.3,173.27,19.53749901]
[1747878986438,295.84,173.3,173.26,19.53749901]
[1747878987421,301.610367,173.3,173.26,19.53749901]
[1747878987618,261.18,173.3,173.27,19.53749901]
[1747878987834,261.18,173.3,173.29,19.53749901]
[1747878988232,261.18,173.3,173.28,19.53749901]
[1747878988635,261.18,173.3,173.27,19.53749901]
[1747878988843,261.18,173.3,173.26,19.53749901]
[1747878989426,261.18,173.3,173.26,19.03749901]
[1747878989846,261.18,173.3,173.22,26.0]
[1747878990044,261.18,173.3,173.26,19.53749901]
[1747878991747,266.95034155,173.3,173.26,19.53749901]
[1747878991929,19.53749901,173.29,173.2,26.0]
[1747878992123,34.64,173.28,173.24,19.53749901]
[1747878992744,136.9,173.31,173.26,19.53749901]
[1747878992745,98.91749901,173.31,173.26,19.53749901]
[1747878992942,79.38,173.31,173.27,19.53749901]
[1747878993141,44.74,173.31,173.28,19.53749901]
[1747878993854,44.74,173.31,173.27,19.53749901]
[1747878994232,18.79181043,173.3,173.16,4.51034245]
[1747878994431,19.53749901,173.22,173.14,5.91783443]
[1747878994629,19.53749901,173.18,173.04,34.78216157]
[1747878994963,19.53749901,173.16,173.11,19.53749901]
[1747878995159,34.64,173.18,173.1,8.1886256]
[1747878995160,19.53749901,173.14,173.1,8.1886256]
[1747878995365,19.53749901,173.13,173.1,8.1886256]
[1747878995669,19.53749901,173.11,173.1,8.1886256]
[1747878995830,25.45633437,173.11,173.1,8.1886256]
[1747878996030,25.45633437,173.11,173.02,30.61384572]
[1747878996274,0.14216157,173.09,173.02,11.07634671]
[1747878996439,19.53749901,173.09,173.04,19.53749901]
[1747878996832,34.64,173.1,173.04,19.53749901]
[1747878997034,19.53749901,173.09,173.04,19.53749901]
[1747878997542,34.64,173.1,173.07,19.53749901]
[1747878998048,81.2,173.12,173.09,19.53749901]
[1747878998346,81.2,173.12,173.05,26.0]
[1747878998527,81.2,173.12,173.08,19.53749901]
[1747878999037,81.2,173.12,173.09,19.53749901]
[1747879000651,81.22,173.12,173.09,19.53749901]
[1747879001354,81.22,173.12,173.06,5.77833055]
[1747879001355,81.22,173.12,173.1,19.53749901]
[1747879001846,81.22,173.12,173.05,26.0]
[1747879002052,86.99639443,173.12,173.05,31.77865552]
[1747879002432,81.22,173.12,173.05,31.77865552]
[1747879005255,46.56,173.12,173.11,19.53749901]
[1747879005832,46.56,173.12,173.05,31.77865552]
[1747879006165,46.56,173.12,173.1,19.53749901]
[1747879007835,46.56,173.12,173.11,19.53749901]
[1747879013064,52.33660912,173.12,173.09,19.53749901]
[1747879013263,46.56,173.12,173.11,19.53749901]
[1747879013578,46.58,173.17,173.11,19.53749901]
[1747879013760,46.58,173.17,173.16,19.53749901]
[1747879014850,48.69475237,173.17,173.16,19.53749901]
[1747879015050,2.11475237,173.17,173.16,19.53749901]
[1747879015469,40.43372138,173.2,173.16,19.53749901]
[1747879015686,40.43372138,173.2,173.18,19.53749901]
[1747879020976,46.58,173.22,173.19,19.53749901]
[1747879021166,36.75555976,173.21,173.2,19.53749901]
[1747879021366,34.64,173.21,173.2,19.53749901]
[1747879021672,46.58,173.22,173.2,13.32896389]
[1747879021876,46.58,173.22,173.21,13.32896389]
[1747879022079,52.35300883,173.22,173.2,13.32896389]
[1747879022578,46.58,173.22,173.2,13.32896389]
[1747879022980,46.58,173.22,173.21,13.32896389]
[1747879025290,216.12,173.26,173.21,13.32896389]
[1747879025489,216.12,173.26,173.25,13.32896389]
[1747879025665,86.97142057,173.27,173.25,13.32896389]
[1747879026063,86.97142057,173.27,173.19,5.77397612]
[1747879026271,86.97142057,173.27,173.23,13.32896389]
[1747879026472,100.30038446,173.27,173.22,13.32896389]
[1747879027270,86.97142057,173.27,173.22,13.32896389]
[1747879028110,86.97142057,173.27,173.23,13.32896389]
[1747879028281,86.97142057,173.27,173.24,13.32896389]
[1747879028483,86.97142057,173.27,173.25,13.32896389]
[1747879028995,52.33142057,173.27,173.26,13.32896389]
[1747879030083,52.33142057,173.27,173.25,13.32896389]
[1747879031511,52.33142057,173.27,173.26,13.32896389]
[1747879031879,46.56,173.27,173.26,13.32896389]
[1747879032080,34.64,173.29,173.26,13.32896389]
[1747879032390,34.64,173.3,173.28,13.32896389]
[1747879032805,34.64,173.3,173.27,13.32896389]
[1747879032976,53.73897139,173.31,173.26,13.32896389]
[1747879033178,53.73897139,173.31,173.21,31.77328835]
[1747879033179,68.16399014,173.31,173.25,13.32896389]
[1747879033474,68.16399014,173.31,173.26,13.32896389]
[1747879033799,54.83502625,173.31,173.27,13.32896389]
[1747879036081,40.4100075,173.31,173.27,13.32896389]
[1747879036709,5.7700075,173.31,173.27,13.32896389]
[1747879036919,40.4100075,173.31,173.27,13.32896389]
[1747879037905,53.73897139,173.31,173.26,13.32896389]
[1747879038427,40.4100075,173.31,173.27,13.32896389]
[1747879039604,14.42202626,173.35,173.3,13.32896389]
[1747879039821,79.82,173.34,173.31,13.32896389]
[1747879040130,34.64,173.33,173.29,13.32896389]
[1747879040300,34.64,173.33,173.27,13.32896389]
[1747879040301,47.96896389,173.33,173.27,13.32896389]
[1747879040724,47.96896389,173.33,173.28,13.32896389]
[1747879042030,5.76967459,173.32,173.28,13.32896389]
[1747879043830,20.19386106,173.32,173.28,13.32896389]
[1747879044125,48.11112546,173.33,173.24,13.32896389]
[1747879044126,5.77100646,173.28,173.24,13.32896389]
[1747879044340,40.39100646,173.28,173.24,13.32896389]
[1747879045396,45.18,173.27,173.23,13.32896389]
[1747879046743,45.18,173.27,173.24,13.32896389]
[1747879046951,45.18,173.27,173.25,13.32896389]
[1747879047842,50.95146021,173.27,173.25,13.32896389]
[1747879048350,45.18,173.27,173.26,13.32896389]
[1747879049324,45.10112693,173.27,173.26,13.32896389]
[1747879049625,5.77102887,173.28,173.26,13.32896389]
[1747879049838,5.77102887,173.28,173.27,13.32896389]
[1747879050251,34.62,173.29,173.27,13.32896389]
[1747879050550,40.39081687,173.29,173.27,13.32896389]
[1747879050931,5.77081687,173.29,173.27,13.32896389]
[1747879051568,45.18,173.31,173.28,13.32896389]
[1747879051758,79.8,173.36,173.3,13.32896389]
[1747879052055,50.94858345,173.36,173.34,13.32896389]
[1747879053529,45.18,173.36,173.35,13.32896389]
[1747879054449,34.62,173.4,173.35,13.32896389]
[1747879054634,34.62,173.4,173.38,13.32896389]
[1747879055153,40.3870863,173.4,173.38,13.32896389]
[1747879055564,5.7670863,173.4,173.38,13.32896389]
[1747879055744,5.7670863,173.4,173.37,13.32896389]
[1747879055933,5.7670863,173.4,173.38,13.32896389]
[1747879056948,5.7670863,173.4,173.37,13.32896389]
[1747879058457,5.7670863,173.4,173.32,26.0]
[1747879058632,5.7670863,173.4,173.37,13.32896389]
[1747879058958,5.7670863,173.4,173.36,13.32896389]
[1747879059846,5.7670863,173.4,173.37,13.32896389]
[1747879061759,5.7670863,173.4,173.38,13.32896389]
[1747879062133,5.7670863,173.4,173.37,13.32896389]
[1747879069280,5.7670863,173.4,173.34,26.0]
[1747879069453,20.18461801,173.4,173.34,26.0]
[1747879069768,33.5135819,173.4,173.35,13.32896389]
[1747879069977,5.7670863,173.4,173.36,13.32896389]
[1747879070345,5.7670863,173.4,173.37,13.32896389]
[1747879071146,5.7670863,173.4,173.36,13.32896389]
[1747879071555,5.7670863,173.4,173.33,26.0]
[1747879071889,5.7670863,173.4,173.36,13.32896389]
[1747879076547,5.7670863,173.4,173.37,13.32896389]
[1747879076957,2.1179627,173.39,173.36,13.32896389]
[1747879077444,5.7670863,173.4,173.36,13.32896389]
[1747879078466,5.7670863,173.4,173.37,13.32896389]
[1747879082068,2.11814044,173.39,173.37,13.32896389]
[1747879082864,2.11814044,173.39,173.33,26.0]
[1747879083052,5.7670863,173.4,173.37,13.32896389]
[1747879083255,20.18461801,173.4,173.36,13.32896389]
[1747879085184,5.7670863,173.4,173.36,13.32896389]
[1747879086077,2.12011604,173.39,173.36,13.32896389]
[1747879086979,5.7670863,173.4,173.36,13.32896389]
[1747879087678,20.18461801,173.4,173.36,13.32896389]
[1747879088580,44.74,173.39,173.35,13.32896389]
[1747879089077,5.76767793,173.38,173.34,13.32896389]
[1747879089394,13.32896389,173.35,173.29,13.32896389]
[1747879089578,47.92896389,173.35,173.29,13.32896389]
[1747879090278,5.76900888,173.34,173.29,13.32896389]
[1747879090461,5.76900888,173.34,173.3,13.32896389]
[1747879091164,0.14216157,173.33,173.26,13.32896389]
[1747879091380,57.96896389,173.32,173.27,13.32896389]
[1747879091553,44.64,173.32,173.27,13.32896389]
[1747879092066,44.64,173.32,173.31,13.32896389]
[1747879094767,151.31787413,173.4,173.31,13.32896389]
[1747879095094,85.02734529,173.39,173.36,13.32896389]
[1747879095557,85.02734529,173.39,173.3,13.32896389]
[1747879095558,99.44570851,173.39,173.35,13.32896389]
[1747879095981,26.0,173.38,173.34,13.32896389]
[1747879096480,112.7746724,173.39,173.34,13.32896389]
[1747879097682,13.47112546,173.38,173.33,13.32896389]
[1747879098894,5.76801061,173.37,173.33,13.32896389]
[1747879099259,5.76801061,173.37,173.34,13.32896389]
[1747879099461,20.18803714,173.37,173.32,13.32896389]
[1747879099660,33.51700103,173.37,173.32,13.32896389]
[1747879100786,33.51700103,173.37,173.3,26.0]
[1747879101084,13.32896389,173.35,173.29,26.0]
[1747879101281,34.62,173.34,173.3,13.32896389]
[1747879101984,5.76934171,173.33,173.31,13.32896389]
[1747879104985,5.76934171,173.33,173.32,13.32896389]
[1747879106263,5.76934171,173.33,173.31,13.32896389]
[1747879109899,40.38908698,173.34,173.31,13.32896389]
[1747879113008,34.62,173.34,173.33,13.32896389]
[1747879113206,5.76866034,173.36,173.33,13.32896389]
[1747879113612,5.76866034,173.36,173.34,13.32896389]
[1747879113988,5.76810144,173.37,173.34,13.32896389]
[1747879114384,44.64,173.39,173.36,13.32896389]
[1747879114586,44.64,173.39,173.37,13.32896389]
[1747879114790,44.64,173.39,173.38,13.32896389]
[1747879118117,44.64,173.39,173.34,5.76886881]
[1747879118412,50.4074154,173.39,173.32,26.0]
[1747879118604,50.4074154,173.39,173.37,13.32896389]
[1747879119111,50.4074154,173.39,173.36,13.32896389]
[1747879120810,50.4074154,173.39,173.29,67.27802363]
[1747879121015,63.73637929,173.39,173.34,13.32896389]
[1747879121316,34.6,173.38,173.34,13.32896389]
[1747879121615,47.92896389,173.38,173.33,13.32896389]
[1747879122911,33.51700103,173.37,173.32,13.32896389]
[1747879123589,33.51700103,173.37,173.29,26.0]
[1747879123790,33.51700103,173.37,173.32,13.32896389]
[1747879127206,13.32896389,173.36,173.31,13.32896389]
[1747879128726,5.76867608,173.35,173.32,13.32896389]
[1747879130419,5.76867608,173.35,173.31,13.32896389]
[1747879131718,33.51933019,173.35,173.3,13.32896389]
[1747879131942,13.32896389,173.33,173.27,13.32896389]
[1747879132097,44.5,173.32,173.28,13.32896389]
[1747879132501,44.5,173.32,173.29,13.32896389]
[1747879133917,5.7700075,173.31,173.28,13.32896389]
[1747879136031,5.7700075,173.31,173.27,13.32896389]
[1747879136232,5.7700075,173.31,173.25,26.0]
[1747879136233,19.09897139,173.31,173.26,13.32896389]
[1747879136524,34.62,173.3,173.26,13.32896389]
[1747879137208,5.77067343,173.29,173.26,13.32896389]
[1747879137899,19.09963732,173.29,173.24,13.32896389]
[1747879138099,13.32896389,173.27,173.18,14.05699123]
[1747879138326,34.62,173.26,173.22,13.32896389]
[1747879139099,34.62,173.26,173.21,26.0]
[1747879139100,34.62,173.26,173.21,13.32896389]
[1747879139298,5.77200577,173.25,173.21,13.32896389]
[1747879140931,50.29200577,173.25,173.21,13.32896389]
[1747879142431,50.29200577,173.25,173.22,13.32896389]
[1747879142604,2.11614201,173.24,173.22,13.32896389]
[1747879143230,136.9,173.31,173.23,39.32896389]
[1747879143530,44.66216157,173.32,173.29,13.32896389]
[1747879143531,84.90975967,173.32,173.29,13.32896389]
[1747879144134,2.11680413,173.31,173.26,31.7714525]
[1747879144313,2.11680413,173.31,173.3,13.32896389]
[1747879144939,44.52,173.36,173.3,26.65792778]
[1747879145124,44.52,173.36,173.35,13.32896389]
[1747879145312,46.63733115,173.36,173.35,13.32896389]
[1747879145939,44.52,173.36,173.35,13.32896389]
[1747879146439,46.63705738,173.36,173.35,13.32896389]
[1747879146622,52.40540071,173.36,173.33,13.32896389]
[1747879147225,50.28834333,173.36,173.33,13.32896389]
[1747879147826,50.28834333,173.36,173.29,31.77056572]
[1747879148029,50.28834333,173.36,173.33,13.32896389]
[1747879150145,44.52,173.36,173.34,13.32896389]
[1747879151045,50.2883501,173.36,173.34,13.32896389]
[1747879151344,50.2883501,173.36,173.33,13.32896389]
[1747879153918,50.2883501,173.36,173.3,26.0]
[1747879154465,50.2883501,173.36,173.33,13.32896389]
[1747879160850,63.61731399,173.36,173.22,22.70847444]
[1747879161055,63.61731399,173.36,173.3,13.32896389]
[1747879161967,13.47112546,173.35,173.29,13.32896389]
[1747879162322,13.32896389,173.34,173.29,13.32896389]
[1747879162527,34.62,173.33,173.29,13.32896389]
[1747879163250,5.76967459,173.32,173.29,13.32896389]
[1747879163652,19.09863848,173.32,173.2,21.60540221]
[1747879163836,19.09863848,173.32,173.27,13.32896389]
[1747879164853,20.19386106,173.32,173.28,13.32896389]
[1747879165175,5.76967459,173.32,173.28,13.32896389]
[1747879165451,5.76943478,173.33,173.3,13.32896389]
[1747879165835,5.76943478,173.33,173.31,13.32896389]
[1747879166230,5.76943478,173.33,173.27,26.0]
[1747879166231,5.76943478,173.33,173.3,13.32896389]
[1747879169326,5.76943478,173.33,173.28,13.32896389]
[1747879169556,5.76943478,173.33,173.27,26.0]
[1747879169756,13.32896389,173.32,173.27,13.32896389]
[1747879169929,13.32896389,173.3,173.25,13.32896389]
[1747879170131,44.32,173.29,173.24,13.32896389]
[1747879170741,13.32896389,173.25,173.19,8.27643832]
[1747879170957,13.32896389,173.23,173.19,8.27643832]
[1747879171158,44.32,173.22,173.19,8.27643832]
[1747879171463,44.32,173.22,173.19,21.60540221]
[1747879171632,44.32,173.22,173.19,13.32896389]
[1747879172660,44.32,173.22,173.21,13.32896389]
[1747879182786,50.09300542,173.22,173.21,13.32896389]
[1747879182981,44.32,173.22,173.21,13.32896389]
[1747879184160,14.57014369,173.28,173.21,13.32896389]
[1747879184161,44.12,173.29,173.24,26.0]
[1747879184525,34.64,173.28,173.27,13.32896389]
[1747879186984,44.12,173.29,173.27,13.32896389]
[1747879187166,44.12,173.29,173.28,13.32896389]
[1747879192392,49.89067343,173.29,173.28,13.32896389]
[1747879194499,44.12,173.29,173.28,13.32896389]
[1747879194988,49.89073488,173.29,173.26,26.0]
[1747879195293,84.51073488,173.29,173.26,39.32896389]
[1747879196677,84.51073488,173.29,173.26,26.0]
[1747879196880,84.51073488,173.29,173.26,13.32896389]
[1747879197981,84.51073488,173.29,173.23,31.77265878]
[1747879197982,84.51073488,173.29,173.28,13.32896389]
[1747879198184,49.89073488,173.29,173.28,13.32896389]
[1747879198382,84.51073488,173.29,173.28,13.32896389]
[1747879199535,78.74,173.29,173.28,13.32896389]
[1747879200011,84.51067343,173.29,173.23,31.77260012]
[1747879200181,84.51067343,173.29,173.28,13.32896389]
[1747879200377,84.51067343,173.29,173.23,26.0]
[1747879200582,84.51067343,173.29,173.27,13.32896389]
[1747879200783,78.74,173.29,173.28,13.32896389]
[1747879201305,84.51067343,173.29,173.27,13.32896389]
[1747879201492,84.51067343,173.29,173.28,13.32896389]
[1747879201694,78.74,173.29,173.28,13.32896389]
[1747879202290,136.9,173.34,173.28,39.32896389]
[1747879202583,44.1,173.34,173.33,13.32896389]
[1747879205904,216.04,173.37,173.33,19.09829758]
[1747879206100,216.04,173.37,173.36,13.32896389]
[1747879206792,44.1,173.39,173.36,13.32896389]
[1747879206992,44.1,173.39,173.37,13.32896389]
[1747879207511,44.1,173.39,173.38,13.32896389]
[1747879209403,44.1,173.39,173.37,13.32896389]
[1747879209916,44.1,173.39,173.34,31.76899421]
[1747879210088,44.1,173.39,173.37,13.32896389]
[1747879212417,44.1,173.39,173.38,13.32896389]
[1747879212594,34.6,173.42,173.38,13.32896389]
[1747879212789,34.6,173.42,173.41,13.32896389]
[1747879213310,34.6,173.42,173.4,13.32896389]
[1747879213922,84.22611219,173.43,173.4,13.32896389]
[1747879214707,78.46,173.43,173.42,13.32896389]
[1747879215094,43.86,173.43,173.42,13.32896389]
[1747879215403,43.86,173.43,173.41,13.32896389]
[1747879216411,43.86,173.43,173.42,13.32896389]
[1747879217608,43.86,173.43,173.37,5.76799761]
[1747879217826,43.86,173.43,173.42,13.32896389]
[1747879218124,49.6260151,173.43,173.4,39.32896389]
[1747879218302,49.6260151,173.43,173.41,13.32896389]
[1747879219109,43.86,173.43,173.42,13.32896389]
[1747879223624,49.6260151,173.43,173.42,13.32896389]
[1747879223825,43.86,173.43,173.42,13.32896389]
[1747879224005,43.86,173.43,173.41,26.0]
[1747879224205,43.86,173.43,173.42,13.32896389]
[1747879226430,49.6260151,173.43,173.42,13.32896389]
[1747879226830,43.86,173.43,173.42,13.32896389]
[1747879227037,43.86,173.43,173.39,26.0]
[1747879227214,49.6260151,173.43,173.41,13.32896389]
[1747879227727,49.6260151,173.43,173.42,13.32896389]
[1747879227903,43.86,173.43,173.42,13.32896389]
[1747879232232,49.6260151,173.43,173.38,26.0]
[1747879232419,49.6260151,173.43,173.39,13.32896389]
[1747879232624,49.6260151,173.43,173.4,13.32896389]
[1747879232827,49.6260151,173.43,173.41,13.32896389]
[1747879234827,43.86,173.43,173.41,13.32896389]
[1747879235142,49.62604166,173.43,173.41,13.32896389]
[1747879235742,49.62604166,173.43,173.4,13.32896389]
[1747879235930,47.92896389,173.42,173.37,13.32896389]
[1747879236128,13.32896389,173.4,173.35,13.32896389]
[1747879236327,34.6,173.39,173.35,13.32896389]
[1747879237446,5.76767793,173.38,173.35,13.32896389]
[1747879240432,5.76767793,173.38,173.34,39.32896389]
[1747879240824,5.76767793,173.38,173.34,26.0]
[1747879241150,19.09664182,173.38,173.33,13.32896389]
[1747879241333,19.09664182,173.38,173.32,13.32896389]
[1747879241528,13.32896389,173.37,173.31,13.32896389]
[1747879241845,5.76867608,173.35,173.31,13.32896389]
[1747879242051,31.76867608,173.35,173.31,13.32896389]
[1747879242262,66.36867608,173.35,173.31,13.32896389]
[1747879242756,40.36867608,173.35,173.31,13.32896389]
[1747879242928,40.36867608,173.35,173.32,13.32896389]
[1747879243958,43.84,173.36,173.26,26.0]
[1747879243959,43.84,173.36,173.34,13.32896389]
[1747879244161,43.84,173.36,173.35,13.32896389]
[1747879244460,0.3789848,173.4,173.35,13.32896389]
[1747879244624,0.3789848,173.4,173.39,13.32896389]
[1747879246235,43.6,173.46,173.4,13.32896389]
[1747879246440,43.6,173.46,173.44,13.32896389]
[1747879246657,49.36513277,173.46,173.44,13.32896389]
[1747879247154,43.6,173.46,173.44,13.32896389]
[1747879248125,43.6,173.46,173.39,26.0]
[1747879248126,49.36512743,173.46,173.39,26.0]
[1747879248324,62.69409132,173.46,173.41,13.32896389]
[1747879248535,13.32896389,173.45,173.39,13.32896389]
[1747879248734,47.92896389,173.44,173.39,13.32896389]
[1747879248941,13.32896389,173.43,173.38,13.32896389]
[1747879249262,13.32896389,173.42,173.32,8.24997704]
[1747879249438,13.32896389,173.42,173.36,13.32896389]
[1747879249633,13.32896389,173.41,173.36,13.32896389]
[1747879249829,34.6,173.4,173.36,13.32896389]
[1747879250023,43.6,173.39,173.36,13.32896389]
[1747879250228,49.36736066,173.39,173.36,13.32896389]
[1747879251542,49.36736066,173.39,173.35,13.32896389]
[1747879252644,49.36736066,173.39,173.36,13.32896389]
[1747879253350,43.6,173.39,173.36,13.32896389]
[1747879254035,49.3674595,173.39,173.36,13.32896389]
[1747879254365,49.3674595,173.39,173.35,13.32896389]
[1747879255329,13.32896389,173.38,173.3,4.60248246]
[1747879255536,49.3674595,173.39,173.35,13.32896389]
[1747879256637,62.69642339,173.39,173.34,13.32896389]
[1747879257156,62.69642339,173.39,173.33,13.32896389]
[1747879257750,77.11478661,173.39,173.33,13.32896389]
[1747879258132,77.11478661,173.39,173.34,13.32896389]
[1747879258756,13.32896389,173.38,173.33,13.32896389]
[1747879259129,13.32896389,173.38,173.29,26.0]
[1747879259337,5.76801061,173.37,173.32,13.32896389]
[1747879260554,5.76801061,173.37,173.33,13.32896389]
[1747879260760,180.5,173.39,173.35,13.32896389]
[1747879260948,180.5,173.39,173.38,13.32896389]
[1747879261144,43.6,173.39,173.38,13.32896389]
[1747879261361,43.6,173.39,173.38,19.09664182]
[1747879261669,43.6,173.44,173.38,58.42560571]
[1747879261957,43.6,173.44,173.43,13.32896389]
[1747879262466,16.73159551,173.51,173.43,13.32896389]
[1747879262760,43.6,173.48,173.46,13.32896389]
[1747879263841,43.6,173.48,173.45,13.32896389]
[1747879264039,49.36439292,173.48,173.44,13.32896389]
[1747879264341,49.36439292,173.48,173.45,13.32896389]
[1747879265372,43.6,173.48,173.45,13.32896389]
[1747879266048,49.36444388,173.48,173.45,13.32896389]
[1747879266774,49.36444388,173.48,173.44,13.32896389]
[1747879267086,43.6,173.48,173.45,13.32896389]
[1747879267735,43.6,173.48,173.43,39.32896389]
[1747879267736,62.69342138,173.48,173.43,39.32896389]
[1747879268066,62.69342138,173.48,173.43,13.32896389]
[1747879268368,13.32896389,173.46,173.36,59.0]
[1747879268563,13.32896389,173.43,173.37,13.32896389]
[1747879268767,13.32896389,173.43,173.38,13.32896389]
[1747879269562,5.76634759,173.42,173.38,13.32896389]
[1747879269866,5.76568265,173.44,173.39,13.32896389]
[1747879270066,19.09464654,173.44,173.39,13.32896389]
[1747879270654,13.47112546,173.43,173.38,13.32896389]
[1747879271071,13.47112546,173.43,173.36,26.0]
[1747879271283,13.32896389,173.38,173.29,4.59887164]
[1747879271469,78.2,173.37,173.27,4.59479972]
[1747879271773,43.6,173.36,173.31,13.32896389]
[1747879271977,43.6,173.36,173.32,13.32896389]
[1747879272274,13.47112546,173.35,173.29,13.32896389]
[1747879272447,13.47112546,173.35,173.29,39.32896389]
[1747879272873,13.47112546,173.35,173.3,13.32896389]
[1747879273078,13.47112546,173.35,173.29,39.32896389]
[1747879273252,13.32896389,173.33,173.28,13.32896389]
[1747879273442,47.92896389,173.33,173.28,13.32896389]
[1747879273646,34.6,173.33,173.28,19.53203233]
[1747879274057,59.90140653,173.33,173.27,19.53203233]
[1747879275776,59.90140653,173.33,173.28,19.53203233]
[1747879276484,40.3693742,173.33,173.28,19.53203233]
[1747879276784,215.9,173.4,173.33,26.0]
[1747879276981,215.9,173.4,173.38,19.53203233]
[1747879277283,215.9,173.4,173.39,19.53203233]
[1747879278987,215.9,173.4,173.38,19.53203233]
[1747879279558,43.36,173.41,173.39,19.53203233]
[1747879279862,43.36,173.41,173.4,19.53203233]
[1747879280180,43.36,173.46,173.41,5.76668012]
[1747879280376,43.36,173.46,173.45,19.53203233]
[1747879283668,103.25713934,173.46,173.4,19.53203233]
[1747879283869,19.53203233,173.45,173.39,19.53203233]
[1747879284183,19.53203233,173.4,173.3,6.2873]
[1747879284386,49.12745912,173.39,173.34,19.53203233]
[1747879284878,68.65949145,173.39,173.34,19.53203233]
[1747879285070,19.53203233,173.38,173.33,26.0]
[1747879285267,19.53203233,173.38,173.33,19.53203233]
[1747879285471,19.53203233,173.38,173.32,19.53203233]
[1747879286374,5.76801061,173.37,173.33,19.53203233]
[1747879286565,34.6,173.36,173.34,19.53203233]
[1747879286761,34.6,173.36,173.33,19.53203233]
[1747879288665,43.36,173.39,173.35,19.53203233]
[1747879288866,34.6,173.38,173.35,19.53203233]
[1747879289784,40.36772139,173.38,173.35,19.53203233]
[1747879291184,40.36772139,173.38,173.33,19.53203233]
[1747879292095,40.36772139,173.38,173.34,19.53203233]
[1747879292401,43.36,173.39,173.37,19.53203233]
[1747879292570,43.36,173.39,173.31,26.0]
[1747879292571,43.36,173.39,173.38,19.53203233]
[1747879293366,43.36,173.39,173.37,19.53203233]
[1747879293579,43.36,173.39,173.35,26.0]
[1747879293778,49.12751075,173.39,173.33,26.0]
[1747879294075,49.12751075,173.39,173.36,19.53203233]
[1747879295874,49.12751075,173.39,173.35,19.53203233]
[1747879296395,49.12751075,173.39,173.36,19.53203233]
[1747879297373,68.65954308,173.39,173.31,26.0]
[1747879297569,34.6,173.38,173.34,19.53203233]
[1747879299198,34.6,173.38,173.36,19.53203233]
[1747879299403,40.367863,173.38,173.37,19.53203233]
[1747879300610,43.36,173.39,173.37,19.03203233]
[1747879300908,43.36,173.39,173.31,26.0]
[1747879301095,43.36,173.39,173.37,19.53203233]
[1747879301804,49.12737482,173.39,173.37,19.53203233]
[1747879303306,49.12737482,173.39,173.36,19.53203233]
[1747879303512,49.12737482,173.39,173.34,19.53203233]
[1747879306508,49.12737482,173.39,173.36,19.53203233]
[1747879308609,43.36,173.39,173.36,19.53203233]
[1747879308804,43.36,173.39,173.32,26.0]
[1747879308805,43.36,173.39,173.37,19.53203233]
[1747879309387,49.12737164,173.39,173.37,19.53203233]
[1747879309715,49.12737164,173.39,173.36,19.53203233]
[1747879310595,43.36,173.39,173.37,19.53203233]
[1747879311115,49.1273812,173.39,173.37,19.53203233]
[1747879311917,49.1273812,173.39,173.36,19.53203233]
[1747879313627,49.1273812,173.39,173.35,19.53203233]
[1747879315495,49.1273812,173.39,173.36,19.53203233]
[1747879317440,49.1273812,173.39,173.35,19.53203233]
[1747879317595,49.1273812,173.39,173.33,26.0]
[1747879317912,49.1273812,173.39,173.35,13.30555182]
[1747879318322,49.1273812,173.39,173.36,13.30555182]
[1747879318795,49.1273812,173.39,173.37,13.30555182]
[1747879318992,49.1273812,173.39,173.35,26.0]
[1747879318993,43.36,173.39,173.38,13.30555182]
[1747879320199,5.76681523,173.41,173.38,13.30555182]
[1747879320507,5.76681523,173.41,173.4,13.30555182]
[1747879321009,5.76681523,173.41,173.39,13.30555182]
[1747879321318,5.76681523,173.41,173.38,13.30555182]
[1747879321618,5.76634759,173.42,173.38,19.50890506]
[1747879321821,39.69112163,173.42,173.36,19.50890506]
[1747879322008,19.50890506,173.41,173.36,19.50890506]